Cogmind - Beta 15 @@@ ROGUE MODE // 2025.07.26 @ 18:14:08 Player: Rockstar Result: Destroyed by S-10 Pest with Light Assault Rifle Performance ------------- Evolutions (2) 1000 Regions Visited (4) 800 Robots Destroyed (33) 165 Value Destroyed (882) 882 Prototype IDs (2) 40 Alien Tech Used (0) 0 Bonus (0) 0 TOTAL SCORE: 2887 Bonus ------- None Cogmind --------- Core Integrity 0/550 Matter 260/300 Energy 6/100 System Corruption 0% Temperature Cool (0) Movement Flying (32) Location -8/Materials Parts ------- > --- POWER (1) -------- (None) > --- PROPULSION (4) --- Cesium-ion Thruster Cesium-ion Thruster > --- UTILITY (4) ------ Improved Heat Sink Signal Interpreter Improved Terrain Scanner Hacking Suite > --- WEAPON (2) ------- (None) > --- INVENTORY (5) ---- Small Storage Unit Medium Reactive Plating Peak State ------------ > --- POWER ------------ Light Nuclear Core > --- PROPULSION ------- Aluminum Leg Aluminum Leg Aluminum Leg Improved Aluminum Leg > --- UTILITY ---------- Small Storage Unit Experimental Sensor Array Signal Interpreter Hacking Suite > --- WEAPON ----------- Improved EM Pulse Cannon Improved EM Pulse Cannon > --- INVENTORY -------- Ion Engine Improved Heat Sink Medium Reactive Plating Decoy Drone Bay Improved EM Pulse Cannon Improved EM Pulse Cannon Mace [Rating: 33] Favorites ----------- Power Light Nuclear Core Engine Ion Engine Power Core Light Nuclear Core Propulsion Aluminum Leg Treads Light Treads Leg Aluminum Leg Flight Unit Flight Unit Utility Signal Interpreter Device Experimental Sensor Array Storage Small Storage Unit Processor Signal Interpreter Hackware Hacking Suite Protection Medium Reactive Plating Weapon Particle Gun Energy Gun Particle Gun Energy Cannon Particle Cannon Ballistic Gun Assault Rifle Impact Weapon Mace Slashing Weapon Mining Claw Build | -11 -10 -9 -9 -8 ------- Run | Yrd Mat Mat Min Mat Slots Evolved 4 | . . 2 . 2 Power . | . . . . . Propulsion 2 | . . 2 . . Utility 2 | . . . . 2 Weapon . | . . . . . Parts Attached 51 | 6 7 12 12 14 Power 5 | 1 1 1 2 . Engine 3 | 1 1 . 1 . Core 2 | . . 1 1 . Reactor . | . . . . . Propulsion 21 | 2 4 7 5 3 Treads 2 | . 2 . . . Leg 13 | 2 2 3 5 1 Wheel . | . . . . . Hover . | . . . . . Flight 6 | . . 4 . 2 Utility 10 | 1 2 1 2 4 Device 4 | . . 1 1 2 Storage 3 | 1 1 . 1 . Processor 1 | . 1 . . . Hackware 1 | . . . . 1 Protection 1 | . . . . 1 Artifact . | . . . . . Weapon 15 | 2 . 3 3 7 Energy Gun 4 | . . 2 . 2 Energy Cannon 5 | . . . 1 4 Ballistic Gun 4 | 2 . 1 1 . Ballistic Cannon . | . . . . . Launcher . | . . . . . Special Weapon . | . . . . . Impact Weapon 1 | . . . . 1 Slashing Weapon 1 | . . . 1 . Piercing Weapon . | . . . . . Special Melee Weapon . | . . . . . Unidentified Prototypes 2 | . . . 1 1 Parts Lost 22 | . . 5 6 11 Power 1 | . . . 1 . Propulsion 12 | . . 3 4 5 Utility 1 | . . . . 1 Weapon 8 | . . 2 1 5 Highest Loss Streak 7 | . . 3 5 7 To Critical Strikes . | . . . . . Average Backups 5 | 2 6 6 5 5 Power . | . 1 1 . . Propulsion . | 1 2 1 . . Utility 2 | . 1 2 3 2 Weapon 1 | . 1 1 2 1 Tool/Special . | . . . . . Unused Backups 10 | . 3 2 2 3 Power 4 | . 2 1 . 1 Propulsion . | . . . . . Utility 4 | . 1 1 1 1 Weapon 2 | . . . 1 1 Tool/Special . | . . . . . Average Slot Usage (%) 91 | . 90 98 96 73 Engine 3 | . 14 5 1 . Core 6 | . . 6 8 4 Leg 33 | . 22 33 40 19 Flight 1 | . . 9 . . Device 5 | . . 3 6 7 Storage 7 | . 20 8 4 5 Processor 9 | . . 11 11 9 Hackware 1 | . . . . 8 Energy Gun 7 | . . 10 10 1 Energy Cannon 5 | . . . 5 10 Ballistic Gun 6 | . 28 11 3 . Slashing Weapon 1 | . . . 2 . Peak Build Rating 33 | 6 8 14 21 33 Average Rating 15 | 4 6 11 16 24 On Entrance 9 | . 6 8 14 17 Naked Turns . | . . . . . Heaviest Build 44 | 14 15 14 17 44 Greatest Support 43 | 20 40 40 43 43 Greatest Overweight (x) 4 | 3 4 1 3 4 Average Overweight (x) . | . . . . . Largest Inventory Capacity 8 | 8 8 8 8 8 Average Capacity 6 | 7 8 7 6 6 Most Carried 8 | 4 8 8 8 8 Average Carried 6 | 2 6 6 6 5 Final Capacity 8 | 8 8 5 8 5 Final Carried 8 | 4 8 5 8 2 Class Distribution -------------------- 60% | Scavenger-Mutant 39% | Mutant Dominant Class ---------------- Mutant | -10/Materials Scavenger-Mutant | -9/Materials Scavenger-Mutant | -9/Mines Mutant | -8/Materials Resources | -11 -10 -9 -9 -8 ----------- Run | Yrd Mat Mat Min Mat Matter Collected 1031 | 246 206 183 276 120 Remotely . | . . . . . Salvage Created 1117 | . 248 193 404 272 Parts 58 | . 13 13 23 9 Haulers Intercepted . | . . . . . Recyclers Shooed . | . . . . . Parts Field Recycled . | . . . . . Retrieved Matter . | . . . . . Parts Self-Destructed . | . . . . . Prevented . | . . . . . Kills | -11 -10 -9 -9 -8 ------- Run | Yrd Mat Mat Min Mat Combat Hostiles Destroyed 34 | . 5 6 16 7 Melee 6 | . . . 4 2 Guns 21 | . 5 6 10 . Cannons 6 | . . . 2 4 Classes Destroyed 8 | . 2 2 1 3 Worker 1 | . 1 . . . Builder 1 | . . . . 1 Swarmer 12 | . . 3 6 3 Grunt 16 | . 5 2 7 2 Duelist 1 | . . . . 1 Sentry 1 | . . 1 . . Hunter 1 | . . . . 1 Assembled 3 | . . . 3 . Best Kill Streak 4 | . 2 4 4 4 Combat Bots Only 4 | . 2 4 4 4 Max Kills in Single Turn 2 | . 1 2 1 1 Gunslinging 1 | . . 1 . . Exploded . | . . . . . Melee 1 | . . . 1 1 Uniques/NPCs Destroyed . | . . . . . Combat | -11 -10 -9 -9 -8 -------- Run | Yrd Mat Mat Min Mat Hostile Shots Fired 392 | . 22 51 115 204 Missed 114 | . 5 15 36 58 Hits 278 | . 17 36 79 146 Melee 6 | . . . 1 5 Projectile 272 | . 17 36 78 141 Critical Strikes 3 | . . . . 3 Damage Taken 2969 | . 198 343 844 1584 Core 742 | . 22 36 133 551 Absorbed by Shields . | . . . . . Ignored by Resistances 129 | . . . . 129 Core Remaining (%) 82 | 100 91 . 57 . Volleys Fired 84 | . 17 16 39 12 Largest 2 | . 2 2 2 2 Hottest 138 | . 40 60 133 138 Shots Fired 150 | . 34 32 67 17 Gun 127 | . 34 32 61 . Cannon 23 | . . . 6 17 Launcher . | . . . . . Special . | . . . . . Kinetic 85 | . 34 23 28 . Thermal 48 | . . 9 39 . Explosive . | . . . . . Electromagnetic 17 | . . . . 17 Robot Hit Streak 11 | . 4 6 11 5 Robot Miss Streak 4 | . 2 3 4 3 Penetration Max . | . . . . . Secondary Targets 2 | . . 1 1 . Max Gunslinging Chain 1 | . . 1 1 . Shots Hit Robots 105 | . 22 19 43 21 Core Hits 47 | . 11 10 20 6 Critical Kills 1 | . . . . 1 Critical Parts Destroyed 1 | . . . . 1 Critical Strikes 3 | . . . . 3 Corrupt 1 | . . . . 1 Smash 2 | . . . . 2 Melee Attacks 42 | . . . 22 20 Impact 20 | . . . . 20 Slashing 22 | . . . 22 . Piercing . | . . . . . Sneak Attacks 2 | . . . . 2 Combat Hostiles . | . . . . . Follow-up Attacks . | . . . . . Damage Inflicted 1899 | . 300 220 720 659 Guns 1035 | . 300 220 515 . Cannons 310 | . . . 62 248 Explosions . | . . . . . Melee 554 | . . . 143 411 Ramming . | . . . . . Kinetic 714 | . 300 132 282 . Thermal 383 | . . 88 295 . Explosive . | . . . . . Electromagnetic 248 | . . . . 248 Impact 411 | . . . . 411 Slashing 143 | . . . 143 . Piercing . | . . . . . Highest Corruption . | . . . . . Average Corruption . | . . . . . Corruption Purged . | . . . . . Corruption Blocked . | . . . . . Overload Shots . | . . . . . Overflow Damage 121 | . . . . 121 Projectiles . | . . . . . Explosions . | . . . . . Melee 121 | . . . . 121 Knockbacks 1 | . . . . 1 Impact 1 | . . . . 1 Kinetic . | . . . . . Secondary . | . . . . . Self-Inflicted Damage . | . . . . . Shots . | . . . . . Rammed . | . . . . . Targets Rammed . | . . . . . Kicked . | . . . . . Crushed . | . . . . . Highest Temperature 328 | . 2 90 328 124 Average Temperature 75 | . 2 36 110 43 Received Heat Transfer 1130 | . 114 48 410 558 Effects 1 | . . . 1 . Damage (minor) 1 | . . . 1 . Siege Activations . | . . . . . Martial Activations . | . . . . . Shielding Activations . | . . . . . Robots Disrupted . | . . . . . Combat Hostiles . | . . . . . Robots Corrupted 2 | . . . . 2 Combat Hostiles 1 | . . . . 1 Parts Fried 6 | . . . . 6 Impact Corruptions 5 | . . . . 5 Robots Melted . | . . . . . Combat Hostiles . | . . . . . Parts Melted 1 | . . . 1 . Heat Transferred 868 | . . 200 668 . Parts Sabotaged . | . . . . . Parts Stolen . | . . . . . Parts Stripped . | . . . . . Power Chain Reactions . | . . . . . Alert | -11 -10 -9 -9 -8 ------- Run | Yrd Mat Mat Min Mat Maximum Alert Level . | . . . . . Low Security (%) 100 | 100 100 100 100 100 Level 1 . | . . . . . Level 2 . | . . . . . Level 3 . | . . . . . Level 4 . | . . . . . Level 5 . | . . . . . High Security . | . . . . . Max Security . | . . . . . Peak Influence 93 | . 66 93 76 75 Initial 23 | . . 23 16 . Average 27 | . 38 56 23 20 Influence Increases 824 | . 141 170 293 220 Destroy 0b10 Robot/C 620 | . 100 120 260 140 Destroy 0b10 Robot/NC 10 | . 5 . . 5 Destroy Leader 110 | . 30 20 30 30 Successful Hack 5 | . 5 . . . Destroy Structure 4 | . 1 . 3 . Lose Combat Pursuer 75 | . . 30 . 45 Influence Decreases 824 | . 85 183 336 220 Entered New Map 60 | . . 33 27 . Time Decay 561 | . 85 100 276 100 Lost Part 153 | . . 50 33 70 Lost Ally 50 | . . . . 50 Squads Dispatched 4 | . 2 . 1 1 Investigation 2 | . 1 . . 1 Extermination . | . . . . . Reinforcement 1 | . 1 . . . Assault 1 | . . . 1 . Garrison . | . . . . . Intercept . | . . . . . Searches Triggered . | . . . . . Construction Impeded . | . . . . . Haulers Reinforced . | . . . . . Active Scanning Responses . | . . . . . Cargo Convoy Interrupts . | . . . . . Stealth | -11 -10 -9 -9 -8 --------- Run | Yrd Mat Mat Min Mat Distress Signals 2 | . 1 . . 1 Communications Jammed . | . . . . . Distress Signals . | . . . . . Times Spotted 52 | . 6 8 17 21 Peak Tracking Total 8 | . 2 5 4 8 Tactical Retreats 5 | . . 2 . 3 Traps | -11 -10 -9 -9 -8 ------- Run | Yrd Mat Mat Min Mat Traps Triggered . | . . . . . Indirectly . | . . . . . Trap Hack Attempts . | . . . . . Triggered . | . . . . . Disarmed . | . . . . . Reprogrammed . | . . . . . Reused . | . . . . . Traps Extracted . | . . . . . Installed . | . . . . . Triggered . | . . . . . Machines | -11 -10 -9 -9 -8 ---------- Run | Yrd Mat Mat Min Mat Machines Disabled . | . . . . . Max in Single Turn . | . . . . . Machines Repaired . | . . . . . Machines Dismantled . | . . . . . Machines Sabotaged . | . . . . . Overloaded Fab Kills . | . . . . . Hacking | -11 -10 -9 -9 -8 --------- Run | Yrd Mat Mat Min Mat Machines Accessed 2 | . 1 . 1 . Terminals 1 | . 1 . . . Fabricators . | . . . . . Repair Stations . | . . . . . Recycling Units . | . . . . . Scanalyzers . | . . . . . Garrison Access . | . . . . . Total Hacks 6 | . 5 . 1 . Successful 2 | . 1 . 1 . Failed 4 | . 4 . . . Catastrophic 1 | . 1 . . . Database Lockouts . | . . . . . Manual 5 | . 5 . . . Terminals 5 | . 5 . . . Fabricators . | . . . . . Repair Stations . | . . . . . Recycling Units . | . . . . . Scanalyzers . | . . . . . Garrison Access . | . . . . . Terminal Hacks 1 | . . . 1 . Open Door 1 | . . . 1 . Fabricator Hacks . | . . . . . Repair Station Hacks . | . . . . . Recycling Unit Hacks . | . . . . . Scanalyzer . | . . . . . Garrison Access Hacks . | . . . . . Unauthorized Hacks 1 | . 1 . . . Terminals 1 | . 1 . . . Botnet 1 | . 1 . . . Fabricators . | . . . . . Repair Stations . | . . . . . Recycling Units . | . . . . . Scanalyzers . | . . . . . Garrison Access . | . . . . . Data Cores Recovered . | . . . . . Used . | . . . . . Hacking Detections 1 | . 1 . . . Full Trace Events 1 | . 1 . . . Feedback Events . | . . . . . Feedback Blocked . | . . . . . Robot Schematics Acquired . | . . . . . Robots Built . | . . . . . Authchips . | . . . . . Time . | . . . . . Total Robot Build Rating . | . . . . . Part Schematics Acquired . | . . . . . Parts Built . | . . . . . Authchips . | . . . . . Time . | . . . . . Total Part Build Rating . | . . . . . Parts Repaired . | . . . . . Time . | . . . . . Parts Recycled . | . . . . . Recycled Matter . | . . . . . Retrieved Matter . | . . . . . Retrieved Components . | . . . . . Parts Scanalyzed . | . . . . . Part Schematics Acquired . | . . . . . Parts Damaged . | . . . . . Bothacking | -11 -10 -9 -9 -8 ------------ Run | Yrd Mat Mat Min Mat Used RIF Installer . | . . . . . Robots Hacked . | . . . . . Non-combat . | . . . . . Combat . | . . . . . Robot Hacks Applied . | . . . . . Relay Couplers Released . | . . . . . Fabnet Peak Effective % . | . . . . . Robots Rewired . | . . . . . Allies Hacked . | . . . . . Hacks Repelled . | . . . . . Allies | -11 -10 -9 -9 -8 -------- Run | Yrd Mat Mat Min Mat Total Allies 1 | . . . 1 . Largest Group 1 | . . . 1 . Highest-Rated Group 31 | . . . 31 . Highest-Rated Ally 31 | . . . 31 . Total Orders 2 | . . . . 2 EXPLORE 2 | . . . . 2 Ally Attacks . | . . . . . Total Damage . | . . . . . Kills . | . . . . . Allies Corrupted . | . . . . . Allies Melted . | . . . . . Intel | -11 -10 -9 -9 -8 ------- Run | Yrd Mat Mat Min Mat Active Infowar (turns) 405 | . . . 277 128 Sensors 397 | . . . 277 120 Terrain 8 | . . . . 8 Robot Analysis Total . | . . . . . Derelict Logs Recovered 1 | . . . 1 . Drone Launches 16 | . . . . 16 Drone Recoveries . | . . . . . Exploration | -11 -10 -9 -9 -8 ------------- Run | Yrd Mat Mat Min Mat Turns Passed 1781 | 69 203 213 958 338 Spaces Moved 981 | 39 86 134 601 121 Core 25 | 6 1 . 7 11 Treads 12 | . 12 . . . Legs 900 | 33 73 99 594 101 Wheels . | . . . . . Hover . | . . . . . Flight 44 | . . 35 . 9 Fastest Speed 31 | 50 120 31 100 32 Average Speed 123 | 121 128 97 120 163 Slowest Speed 260 | 200 250 190 200 260 Overloaded Moves . | . . . . . Propulsion Burnouts . | . . . . . Robots Hopped . | . . . . . Potential Cave-ins . | . . . . . Cave-ins Triggered . | . . . . . Exploration Rate (%) 38 | 4 20 12 90 65 Regions Visited 4 Branch Regions 1 Pre-discovered Areas . | . . . . . Known Exits Taken 3 | . 1 1 1 . Unknown Exits Taken 1 | 1 . . . . Scrap Searched 1 | . . . 1 . Spaces Dug . | . . . . . Terrain Destroyed 3 | . . . 3 . Melee . | . . . . . Projectile 3 | . . . 3 . AOE . | . . . . . Terrain Rammed . | . . . . . Walls Destroyed . | . . . . . Machines Disabled . | . . . . . Actions | -11 -10 -9 -9 -8 --------- Run | Yrd Mat Mat Min Mat Total 1320 | 57 146 186 722 209 Wait 73 | 9 26 2 21 15 Move 977 | 38 85 133 600 121 Hop . | . . . . . Pick Up 30 | 4 6 7 8 5 Fast Attach 35 | 6 3 8 9 9 Attach 14 | . . 5 1 8 Detach 10 | . . 3 1 6 Swap 22 | . 4 3 11 4 Drop 33 | . 5 9 10 9 Fire 84 | . 17 16 39 12 Melee 42 | . . . 22 20 Ram . | . . . . . Kick . | . . . . . Crush . | . . . . . Escape Stasis . | . . . . . Rewire . | . . . . . Trap . | . . . . . Miscellaneous . | . . . . . Route ------- -11/Scrapyard -10/Materials -9/Materials -9/Mines (discovered 3 exits: *Mat x2 / *Zio) -8/Materials (discovered 2 exits: [*Fac] / [*Sto]) History --------- Turn | Location | Event 10 | -11/Scrapyard | Discovered new exit (range 16) 70 | -11/Scrapyard | Entered Materials 267 | -10/Materials | Discovered new exit (range 4) 272 | -10/Materials | Identified exit to Materials 273 | -10/Materials | Entered another Materials area 273 | -9/Materials | Evolved 2 slots: Propulsion x2 314 | -9/Materials | Build established: Mutant 436 | -9/Materials | Lost 3 parts (3n) 449 | -9/Materials | Discovered new exit (range 6) 454 | -9/Materials | Identified exit to Mines 486 | -9/Materials | Entered Mines 556 | -9/Mines | A Derelict revealed a hidden shortcut to a safe place 558 | -9/Mines | Identified exit to Zion 623 | -9/Mines | Found a damaged Exp. Sensor Array with a note attached 627 | -9/Mines | Found Prototype Device 627 | -9/Mines | Identified Exp. Sensor Array 656 | -9/Mines | Met a Derelict testing a Signal Generator 661 | -9/Mines | A weapon hastily lodged in a ceiling crevice suddenly fell to the ground 690 | -9/Mines | Excavation squad dispatched 690 | -9/Mines | A large section of the Mines collapsed 838 | -9/Mines | Lost 5 parts (1p4n) 986 | -9/Mines | Discovered new exit (range 7) 991 | -9/Mines | Identified exit to Materials 1001 | -9/Mines | Learned Materials garrison access intel 1120 | -9/Mines | Build established: Scavenger-Mutant 1155 | -9/Mines | Discovered exit to Materials (range 15) 1180 | -9/Mines | YI-UF0 nonchalantly dropped a Grenade Launcher on the ground 1260 | -9/Mines | Found the Drone Emporium 1265 | -9/Mines | Found Prototype Device 1444 | -9/Mines | Entered Materials 1444 | -8/Materials | Evolved 2 slots: Utility x2 1444 | -8/Materials | Identified Decoy Drone Bay 1445 | -8/Materials | Loaded intel: 1 garrison access location 1616 | -8/Materials | Core integrity fell below 50% 1645 | -8/Materials | Core integrity fell below 20% 1666 | -8/Materials | Lost 7 parts (4n1u2w) 1695 | -8/Materials | Discovered new exit (range 44) 1710 | -8/Materials | Discovered new exit (range 69) 1735 | -8/Materials | Lost 3 allies 1782 | -8/Materials | Destroyed by S-10 Pest with Light Assault Rifle Last Messages --------------- 01714_ Decoy Drone self-destructs. 01714_ Decoy Drone destroyed. 01714_ K-01 Serf collects debris. 01715_ Decoy Drone self-destructs. 01715_ Decoy Drone destroyed. 01718_ K-01 Serf collects debris. 01725_ Dropped Decoy Drone Bay. 01725_ Imp. EM Pulse Cannon destroyed. 01725_ K-01 Serf collects debris. 01726_ Acquired 5 matter. 01728_ K-01 Serf collects debris. 01739_ R-06 Scavenger collects Decoy Drone Bay. 01740_ K-01 Serf collects debris. 01755_ Mace destroyed. 01758_ S-10 Pest destroyed. 01759_ K-01 Serf collects debris. 01769_ Imp. EM Pulse Cannon destroyed. 01771_ Aluminum Leg destroyed. 01774_ Acquired Imp. Terrain Scanner. 01776_ Acquired Cesium-ion Thruster. Map ----- +----------------------------------------------------+ | ?????????????????????????# #??????????????????? | | ?????????????????????????# #??????????????????? | | ?????????????????????????# #??????????????????? | | ?????????????????????????# #??????????????????? | | ?????????????????????????# #??????????????????? | | ?????????????????????????# #??????????????????? | | ??????????????????######?# #??#####???????????? | | ??????????????????# ?# #? = #???????????? | | ??????????????????# T # # #???????????? | | ??????????????????# # # ![ #???????????? | | ??????????????????# !! / + [ ?????????????? | | ??????????????????# ! # #??????????????????? | | ??????????????????# ! # #??????????????????? | | ????????????????########## #??????????????????? | | ????????????????# # #######????????????? | | ????????????????#""" # # ##########???? | | ????????????????#""" # # # ????? | | ????????????????#""" ! + #""" #[ ????? | | ????????????????# # #""" # #??? | | ????????????????# # #""" # """ #???? | | ????????????????# "Y" # # # """"" #???? | | ????????????????# """ # #""" !# """"" #???? | | ????????????????# # #""" # """"" #???? | | ????????????????##########g #""" # """ #???? | | ????????????????# sg + !# #???? | | ????????????????# @# ###########+######## | | ????????????????# # #?# | | ????????????????# #% #?# | | ????????????????# ! # #?# | | ????????????????#!! # #?# ##### ######"# | | ????????????????# # #?# #???# #??# | | ????????????????# # #?# #####+#### | | ????????????????# # #?# # "T" =# | | ????????????????########## #?# # # | | ?????????????????????????# #?# # ! # | | | ?????????????????????????# ###?# # # [ | | ?????????????????????????# #???# + # ! | | ???????###########???????#%#???# # """ # ! | | ???????# #???????# #???# # """ ##### | | ???????# """""" #########%#####% # """ #???? | | ???????# """"""" # % # #???? | | ???????# """"""" # % ##### ####???? | | ???????# """"""" # % #???########?? | | ???????# """"""" # ###############???#]]!!!!#?? | | ???????# ! # #?????????????????#]]!!!!#?? | | ???????# # #?????????????????# #?? | | ???????#####+##### ################### ### | | ??????????# | | ??????????# ####### | | ??????????# #?????? | +----------------------------------------------------+ Best States ------------- Heat Dissipation 45 Energy Generation 14 Energy Capacity 250 Matter Stores 350 Matter Capacity 350 Sight Range 16 Robot Scan Range 20 Terrain Scan Range 16 Terrain Scan Density 10 Armor Coverage 225 Resistance: KI 30 Evasion (%) 63 Recoil Reduction 2 Offensive Hacking 10 Item Schematics ----------------- None Robot Schematics ------------------ None Fabricated ------------ Nothing Repaired ---------- Nothing Alien Tech Used ----------------- None Achievements -------------- None Challenges ------------ None Game ------ Seed RemoteSubatomicCoupler Manual? 0 Play Time 00:34:01 Cumulative 114.3 hours Start 2025.07.26 @ 17:39:31 End 2025.07.26 @ 18:14:08 Sessions 1 Manual Loads 0 Difficulty Rogue Special Mode None Game No. 108 Rogue 105 Adventurer 1 Explorer 2 Win Type - Total 0 Types 0/0/0/0/0/0/0/0/0/0 Lore% 43 Gallery% 55 Achievement% 40 Wizard Run 0 Options --------- Layout 0 ASCII 0 Keyboard 0 Movement Mouse Keybinds 0 Fullscreen 2 Font 24/Smallcaps Map View 76x50 Zoom Use 0% Tactical HUD 1 Map Filters NONE Filters NONE Steam 1 RUN: 651e26f2-a04c-4938-bf1f-a4df26c45de4